bitfinex/quotes_SOLUSD_20250520
["timestamp","ask_amount","ask_price","bid_price","bid_amount"]
[1747744004594,0.14216157,165.77,165.72,18.08]
[1747744004595,135.04216157,165.77,165.72,18.08]
[1747744004792,147.86338691,165.77,165.72,18.08]
[1747744005181,134.9,165.76,165.72,18.08]
[1747744006304,21.11613875,165.75,165.71,18.08]
[1747744006502,135.04216157,165.74,165.67,19.76]
[1747744006686,147.86338691,165.74,165.68,36.72964886]
[1747744006884,134.9,165.73,165.69,18.08]
[1747744007905,134.9,165.73,165.7,18.64964886]
[1747744008603,140.93417882,165.73,165.7,18.64964886]
[1747744010706,134.9,165.73,165.7,18.64964886]
[1747744012705,15.08117739,165.77,165.7,18.64964886]
[1747744014681,15.08117739,165.77,165.72,18.64964886]
[1747744014898,15.08117739,165.77,165.74,18.64964886]
[1747744020497,15.08117739,165.77,165.74,18.08]
[1747744022215,21.11363199,165.77,165.74,18.08]
[1747744024809,15.08117739,165.77,165.74,18.08]
[1747744028996,15.08117739,165.77,165.73,18.08]
[1747744029515,21.11363199,165.77,165.73,18.08]
[1747744030822,156.01363199,165.77,165.73,18.08]
[1747744036889,135.04216157,165.76,165.71,19.58]
[1747744037090,135.04216157,165.76,165.71,18.08]
[1747744037091,147.86338691,165.76,165.71,18.08]
[1747744037303,134.9,165.76,165.72,18.64964886]
[1747744038518,6.0331825,165.75,165.72,18.64964886]
[1747744042329,6.0331825,165.75,165.72,18.59069549]
[1747744050833,6.0331825,165.75,165.71,18.08]
[1747744051133,21.11613875,165.75,165.71,18.08]
[1747744056139,21.11613875,165.75,165.7,18.64964886]
[1747744056332,21.11613875,165.75,165.71,18.08]
[1747744057534,21.11613875,165.75,165.7,18.64964886]
[1747744057742,21.11613875,165.75,165.71,18.08]
[1747744065443,21.11613875,165.75,165.67,25.91494229]
[1747744065444,8.19555835,165.72,165.67,1.5462]
[1747744065655,8.19555835,165.72,165.67,19.6262]
[1747744065947,8.19555835,165.71,165.67,18.08]
[1747744066127,8.19555835,165.71,165.66,18.08]
[1747744066920,8.19555835,165.71,165.65,26.0]
[1747744067145,8.19555835,165.7,165.66,18.08]
[1747744067343,6.03536725,165.69,165.66,18.08]
[1747744068447,168.8404841,165.69,165.63,1.5076]
[1747744068651,168.8404841,165.69,165.64,18.08]
[1747744069746,168.8404841,165.69,165.63,18.64964886]
[1747744069933,168.8404841,165.69,165.62,18.08]
[1747744069934,12.95886029,165.67,165.62,18.08]
[1747744070523,6.03646021,165.66,165.62,18.08]
[1747744071158,6.03646021,165.66,165.61,18.64964886]
[1747744071361,6.03646021,165.66,165.62,18.08]
[1747744073531,6.03646021,165.66,165.63,18.64964886]
[1747744074868,6.03609585,165.67,165.63,18.64964886]
[1747744075089,6.03609585,165.67,165.55,1.5923]
[1747744075090,12.81669872,165.64,165.55,1.5923]
[1747744075357,12.81669872,165.63,165.58,18.64964886]
[1747744075866,135.04216157,165.66,165.58,18.64964886]
[1747744075867,12.81669872,165.64,165.58,18.64964886]
[1747744076960,6.03755358,165.63,165.58,18.64964886]
[1747744077855,21.13143753,165.63,165.58,18.64964886]
[1747744081837,15.09388395,165.63,165.58,18.64964886]
[1747744082765,27.91058267,165.63,165.57,26.0]
[1747744082964,12.81669872,165.62,165.56,36.74964886]
[1747744083670,27.91058267,165.63,165.56,36.74964886]
[1747744083869,33.94813625,165.63,165.56,36.74964886]
[1747744084864,0.14216157,165.62,165.55,27.5923]
[1747744085054,0.14216157,165.62,165.56,18.1]
[1747744085940,21.13398949,165.61,165.56,18.1]
[1747744086351,21.13398949,165.61,165.56,36.74964886]
[1747744092972,21.13398949,165.61,165.57,18.1]
[1747744093881,21.13398949,165.61,165.55,1.5923]
[1747744094085,64.14210177,165.61,165.56,18.1]
[1747744094382,51.32540305,165.61,165.56,18.1]
[1747744094871,21.13398949,165.61,165.56,18.1]
[1747744097468,21.13398949,165.61,165.54,39.64964886]
[1747744097672,21.13398949,165.61,165.57,18.1]
[1747744100556,21.13398949,165.61,165.58,18.64964886]
[1747744101648,6.03828271,165.61,165.58,18.64964886]
[1747744102460,15.09380646,165.64,165.58,18.64964886]
[1747744107968,15.09380646,165.64,165.59,18.1]
[1747744110689,15.09380646,165.64,165.6,18.64964886]
[1747744112305,15.09380646,165.64,165.59,18.1]
[1747744113292,21.13099554,165.64,165.59,18.1]
[1747744118218,33.94769426,165.64,165.59,18.1]
[1747744119312,0.14216157,165.63,165.57,1.5339]
[1747744120201,6.03791812,165.62,165.57,1.5339]
[1747744120504,21.13271343,165.62,165.57,1.5339]
[1747744122310,21.13271343,165.62,165.58,18.64964886]
[1747744122892,6.03791812,165.62,165.58,18.64964886]
[1747744130325,15.09389834,165.63,165.58,18.64964886]
[1747744133206,15.09389834,165.63,165.58,36.74964886]
[1747744134010,15.09389834,165.63,165.58,18.64964886]
[1747744134207,15.09389834,165.63,165.57,45.6339]
[1747744134611,21.13145192,165.63,165.57,45.6339]
[1747744135218,33.94815064,165.63,165.57,44.1]
[1747744135732,168.84815064,165.63,165.57,44.1]
[1747744136026,12.81669872,165.58,165.52,18.64964886]
[1747744136728,21.13909523,165.57,165.52,36.74964886]
[1747744137937,15.09935374,165.57,165.52,36.74964886]
[1747744143452,15.09935374,165.57,165.52,18.64964886]
[1747744143642,12.81669872,165.56,165.5,18.64964886]
[1747744143945,21.13909523,165.57,165.5,18.64964886]
[1747744146846,47.13909523,165.57,165.5,18.64964886]
[1747744148247,21.13909523,165.57,165.5,18.64964886]
[1747744153653,21.13909523,165.57,165.5,23.48346824]
[1747744153946,21.13909523,165.57,165.54,18.64964886]
[1747744154541,6.03974149,165.57,165.54,18.64964886]
[1747744155840,21.13570191,165.6,165.54,18.64964886]
[1747744176150,21.13570191,165.6,165.54,20.26454886]
[1747744185081,21.13570191,165.6,165.56,18.64964886]
[1747744187962,6.03864734,165.6,165.56,18.64964886]
[1747744190084,21.13229539,165.63,165.56,18.64964886]
[1747744191672,21.13229539,165.63,165.56,44.64964886]
[1747744200571,6.03755358,165.63,165.56,49.4816351]
[1747744200910,21.12843129,165.66,165.6,18.64964886]
[1747744201085,21.12843129,165.66,165.61,18.1]
[1747744202795,21.12843129,165.66,165.62,18.64964886]
[1747744203178,6.03646021,165.66,165.62,18.64964886]
[1747744204287,23.29780544,165.69,165.62,18.64964886]
[1747744205096,15.08920249,165.69,165.62,18.64964886]
[1747744206309,15.08920249,165.69,165.62,44.64964886]
[1747744206676,15.08920249,165.69,165.66,18.64964886]
[1747744206977,15.08920249,165.69,165.66,36.74964886]
[1747744211797,15.08920249,165.69,165.66,18.1]
[1747744211993,23.29780544,165.69,165.66,18.1]
[1747744212880,29.33317269,165.69,165.66,18.1]
[1747744213528,21.12456974,165.69,165.66,18.1]
[1747744219216,15.08920249,165.69,165.66,18.1]
[1747744219714,23.29780544,165.69,165.63,18.64964886]
[1747744219921,8.20860295,165.68,165.64,18.1]
[1747744221394,21.12633548,165.67,165.64,18.1]
[1747744222204,21.12633548,165.67,165.65,18.64964886]
[1747744223423,21.12251055,165.7,165.65,18.64964886]
[1747744228552,6.03500301,165.7,165.65,44.64964886]
[1747744229709,21.11939313,165.73,165.68,26.0]
[1747744229913,6.03391057,165.73,165.69,36.74964886]
[1747744231049,23.29130428,165.76,165.69,36.74964886]
[1747744231736,27.88847809,165.76,165.69,36.74964886]
[1747744232130,15.08270133,165.76,165.69,36.74964886]
[1747744232333,15.08270133,165.76,165.69,38.34474886]
[1747744233110,21.11551986,165.76,165.69,38.34474886]
[1747744233729,33.92129662,165.76,165.69,38.34474886]
[1747744234730,21.11551986,165.76,165.69,38.34474886]
[1747744235748,21.0577504,165.76,165.69,38.34474886]
[1747744238438,15.02493187,165.76,165.69,38.34474886]
[1747744241827,15.02493187,165.76,165.7,18.64964886]
[1747744242852,6.0324546,165.77,165.74,18.64964886]
[1747744243016,6.0324546,165.77,165.74,36.72964886]
[1747744243339,12.80577676,165.76,165.72,36.72964886]
[1747744244639,21.11613875,165.75,165.72,36.72964886]
[1747744246348,21.11613875,165.75,165.72,18.08]
[1747744247719,15.08295625,165.75,165.72,18.08]
[1747744247926,6.03281853,165.76,165.72,18.08]
[1747744249024,21.11486486,165.76,165.72,18.08]
[1747744255648,6.03281853,165.76,165.72,18.08]
[1747744255854,12.80577676,165.74,165.69,1.5951]
[1747744256025,21.1174128,165.74,165.67,18.08]
[1747744256417,33.92318956,165.74,165.67,18.08]
[1747744258346,21.1174128,165.74,165.68,18.64964886]
[1747744258558,12.94793833,165.73,165.67,18.64964886]
[1747744258743,12.80577676,165.71,165.66,18.64964886]
[1747744259434,6.03500301,165.7,165.66,18.64964886]
[1747744259648,33.92828731,165.7,165.66,18.64964886]
[1747744260426,21.12251055,165.7,165.66,18.64964886]
[1747744261358,21.12251055,165.7,165.66,18.08]
[1747744261951,33.92828731,165.7,165.66,18.08]
[1747744263979,33.92828731,165.7,165.63,18.64964886]
[1747744264189,33.92828731,165.7,165.66,18.64964886]
[1747744265855,33.92828731,165.7,165.65,18.1]
[1747744266049,12.80577676,165.66,165.57,4.72982579]
[1747744266274,12.80577676,165.64,165.59,18.1]
[1747744266576,12.80577676,165.64,165.6,18.64964886]
[1747744267366,12.80577676,165.63,165.59,26.0]
[1747744267684,12.80577676,165.63,165.58,36.74964886]
[1747744268179,21.13271343,165.62,165.58,36.74964886]
[1747744268385,21.13271343,165.62,165.58,18.64964886]
[1747744268556,21.13271343,165.62,165.57,45.6938]
[1747744269078,33.93849019,165.62,165.57,19.6938]
[1747744269375,33.93849019,165.62,165.56,36.74964886]
[1747744270672,21.13271343,165.62,165.56,36.74964886]
[1747744272691,6.03755358,165.63,165.56,36.74964886]
[1747744273677,6.03755358,165.63,165.56,41.58169271]
[1747744274677,6.03718908,165.64,165.56,41.58169271]
[1747744275061,12.80577676,165.63,165.56,18.64964886]
[1747744275266,12.80577676,165.62,165.56,18.64964886]
[1747744276259,12.80577676,165.63,165.56,18.64964886]
[1747744276684,21.13271343,165.62,165.56,18.64964886]
[1747744277183,33.93849019,165.62,165.56,18.64964886]
[1747744277483,33.93849019,165.62,165.56,36.74964886]
[1747744278674,0.14216157,165.61,165.56,18.1]
[1747744278982,0.14216157,165.61,165.55,20.84]
[1747744279173,0.14216157,165.61,165.55,38.94]
[1747744279769,135.04216157,165.61,165.55,38.94]
[1747744280575,21.13526569,165.6,165.55,38.94]
[1747744281678,21.13526569,165.6,165.56,18.64964886]
[1747744283083,6.03864734,165.6,165.56,18.64964886]
[1747744286170,12.80577676,165.58,165.53,1.5862]
[1747744286374,12.94793833,165.59,165.53,18.64964886]
[1747744286567,0.14216157,165.59,165.53,18.64964886]
[1747744286782,12.94793833,165.59,165.53,18.64964886]
[1747744286982,21.13781857,165.58,165.53,36.74964886]
[1747744288991,15.09844184,165.58,165.53,36.74964886]
[1747744291987,15.09844184,165.58,165.53,18.64964886]
[1747744292178,15.09844184,165.58,165.53,36.74964886]
[1747744294989,6.03901201,165.59,165.53,36.74964886]
[1747744296914,21.13654205,165.59,165.53,18.64964886]
[1747744297201,0.14216157,165.58,165.51,18.64964886]
[1747744297403,21.13654205,165.59,165.51,18.64964886]
[1747744304603,33.94231881,165.59,165.51,18.64964886]
[1747744306204,33.94231881,165.59,165.51,44.64964886]
[1747744307397,33.94231881,165.59,165.53,18.64964886]
[1747744308805,21.13654205,165.59,165.53,18.64964886]
[1747744311006,6.03901201,165.59,165.55,18.64964886]
[1747744312611,6.03828271,165.61,165.55,18.64964886]
[1747744313589,21.13398949,165.61,165.55,18.64964886]
[1747744315019,15.09570678,165.61,165.55,18.64964886]
[1747744315991,6.03791812,165.62,165.55,24.69007222]
[1747744316407,6.03791812,165.62,165.57,18.64964886]
[1747744316710,6.03791812,165.62,165.59,18.59187939]
[1747744317516,21.13271343,165.62,165.59,18.59187939]
[1747744318016,21.13271343,165.62,165.58,18.1]
[1747744320212,33.93849019,165.62,165.58,18.1]
[1747744322821,33.93849019,165.62,165.56,18.64964886]
[1747744323118,33.93849019,165.62,165.57,18.1]
[1747744323505,33.93849019,165.62,165.56,18.64964886]
[1747744323706,21.13271343,165.62,165.57,18.1]
[1747744324712,33.93849019,165.62,165.57,18.1]
[1747744325109,21.13271343,165.62,165.57,18.1]
[1747744336143,21.13271343,165.62,165.58,18.64964886]
[1747744337546,6.03791812,165.62,165.58,18.64964886]
[1747744337749,6.03718908,165.64,165.58,18.64964886]
[1747744338050,6.03718908,165.64,165.6,18.64964886]
[1747744339630,6.03646021,165.66,165.6,18.64964886]
[1747744340743,6.03646021,165.66,165.6,44.64964886]
[1747744341725,6.03646021,165.66,165.64,18.64964886]
[1747744341934,6.03463882,165.71,165.64,36.74964886]
[1747744342947,15.08659706,165.71,165.64,36.74964886]
[1747744343449,6.03427468,165.72,165.66,18.64964886]
[1747744344924,21.11868701,165.73,165.66,18.64964886]
[1747744345127,33.93423142,165.73,165.66,18.64964886]
[1747744345529,33.93423142,165.73,165.62,6.03780329]
[1747744345730,12.81554441,165.66,165.57,19.6982]
[1747744345918,12.81554441,165.66,165.58,26.0]
[1747744346130,12.81554441,165.66,165.59,18.64964886]
[1747744346745,12.81554441,165.68,165.59,18.64964886]
[1747744346950,21.12506035,165.68,165.59,18.64964886]
[1747744347332,33.94060476,165.68,165.59,18.64964886]
[1747744351748,168.84060476,165.68,165.59,40.66964886]
[1747744354449,12.81554441,165.67,165.59,40.66964886]
[1747744356759,21.12761075,165.66,165.59,40.66964886]
[1747744357559,12.95770598,165.65,165.59,40.66964886]
[1747744357762,12.95770598,165.65,165.59,58.76964886]
[1747744358638,12.95770598,165.65,165.59,40.66964886]
[1747744358960,21.13016179,165.64,165.59,58.76964886]
[1747744359143,21.13016179,165.64,165.59,40.66964886]
[1747744359344,21.13016179,165.64,165.59,58.76964886]
[1747744359661,21.13016179,165.64,165.59,36.74964886]
[1747744360362,12.81554441,165.63,165.59,18.1]
[1747744360838,199.03165162,165.64,165.59,18.1]
[1747744362770,199.03165162,165.64,165.58,18.64964886]
[1747744362941,199.03165162,165.64,165.58,36.74964886]
[1747744364669,0.14216157,165.63,165.58,18.1]
[1747744364868,12.95770598,165.63,165.58,18.1]
[1747744365165,12.95770598,165.63,165.57,26.0]
[1747744365166,12.81554441,165.62,165.57,18.1]
[1747744365373,147.71554441,165.62,165.57,18.1]
[1747744366667,21.13398949,165.61,165.57,18.1]
[1747744368368,21.13398949,165.61,165.56,18.64964886]
[1747744368557,21.13398949,165.61,165.57,18.1]
[1747744374272,21.13398949,165.61,165.55,26.0]
[1747744374471,21.13398949,165.61,165.56,18.1]
[1747744375872,21.13398949,165.61,165.57,18.64964886]
[1747744377269,6.03828271,165.61,165.57,18.64964886]
[1747744384580,21.13398949,165.61,165.57,18.64964886]
[1747744384883,29.3411668,165.61,165.57,18.1]
[1747744385177,8.20717731,165.6,165.57,18.1]
[1747744385377,6.03901201,165.59,165.57,18.1]
[1747744386195,6.03901201,165.59,165.56,18.1]
[1747744386196,21.13654205,165.59,165.56,18.1]
[1747744387683,15.09753004,165.59,165.56,18.1]
[1747744388283,15.09753004,165.59,165.55,26.0]
[1747744388481,15.09753004,165.59,165.55,44.1]
[1747744394975,6.18044428,165.61,165.55,44.1]
[1747744395365,21.27615106,165.61,165.55,44.1]
[1747744397291,21.13398949,165.61,165.56,18.64964886]
[1747744397486,6.03828271,165.61,165.56,18.64964886]
[1747744400290,21.13398949,165.61,165.56,18.64964886]
[1747744402795,21.13398949,165.61,165.57,18.1]
[1747744403296,33.96325387,165.61,165.54,18.64964886]
[1747744403471,33.96325387,165.61,165.57,18.1]
[1747744404395,6.03901201,165.59,165.57,18.1]
[1747744405692,21.13654205,165.59,165.54,18.64964886]
[1747744405996,21.13654205,165.59,165.54,36.74964886]
[1747744406902,21.13654205,165.59,165.54,18.64964886]
[1747744407198,21.13654205,165.59,165.54,36.74964886]
[1747744409098,15.09753004,165.59,165.54,36.74964886]
[1747744411304,21.13654205,165.59,165.54,36.74964886]
[1747744416717,15.09753004,165.59,165.54,36.74964886]
[1747744423121,21.13654205,165.59,165.54,36.74964886]
[1747744425321,15.09753004,165.59,165.54,36.74964886]
[1747744427926,21.13654205,165.59,165.54,36.74964886]
[1747744428538,6.03901201,165.59,165.54,36.74964886]
[1747744429027,6.03901201,165.59,165.54,43.23294886]
[1747744430224,15.0952795,165.62,165.54,43.23294886]
[1747744430729,15.0952795,165.62,165.54,49.2737759]
[1747744435629,6.03755358,165.63,165.58,18.64964886]
[1747744435833,6.03755358,165.63,165.6,18.64964886]
[1747744438935,29.34184825,165.63,165.59,18.64964886]
[1747744439134,8.21041072,165.61,165.57,26.0]
[1747744439434,8.21041072,165.61,165.57,44.1]
[1747744439644,29.34184825,165.63,165.58,18.64964886]
[1747744440514,29.34184825,165.63,165.57,44.1]
[1747744440716,8.21041072,165.61,165.57,18.1]
[1747744441825,21.13526569,165.6,165.56,39.58964886]
[1747744442029,21.13526569,165.6,165.57,18.1]
[1747744442215,29.84567641,165.6,165.56,20.94]
[1747744442417,29.84567641,165.6,165.56,18.1]
[1747744442828,29.84567641,165.6,165.55,18.1]
[1747744443724,21.63526569,165.6,165.56,18.64964886]
[1747744445136,21.63526569,165.6,165.55,36.74964886]
[1747744445343,6.53864734,165.6,165.56,18.64964886]
[1747744450646,6.53864734,165.6,165.55,36.74964886]
[1747744451141,21.63526569,165.6,165.55,36.74964886]
[1747744453247,6.53864734,165.6,165.56,18.64964886]
[1747744453448,6.03864734,165.6,165.56,18.64964886]
[1747744453654,6.03840678,165.61,165.58,18.64964886]
[1747744454429,6.03840678,165.61,165.6,18.64964886]
[1747744455345,6.03840678,165.61,165.59,18.1]
[1747744455346,33.95868423,165.61,165.55,18.1]
[1747744455526,12.82457067,165.6,165.56,18.64964886]
[1747744455724,33.95868423,165.61,165.56,18.64964886]
[1747744457854,52.83482712,165.61,165.54,18.64964886]
[1747744458344,12.82457067,165.59,165.54,18.64964886]
[1747744458926,12.82457067,165.59,165.54,36.74964886]
[1747744459128,52.83482712,165.61,165.54,36.74964886]
[1747744459347,12.82457067,165.6,165.54,36.74964886]
[1747744459643,21.13654205,165.59,165.54,36.74964886]
[1747744462051,21.13654205,165.59,165.52,1.5041]
[1747744462052,12.82457067,165.57,165.52,1.5041]
[1747744462252,12.82457067,165.56,165.49,18.1]
[1747744462432,12.82457067,165.57,165.49,18.1]
[1747744462754,12.82457067,165.57,165.49,44.1]
[1747744463354,21.14037206,165.56,165.49,44.1]
[1747744464453,21.14037206,165.56,165.5,18.64964886]
[1747744465645,156.04037206,165.56,165.5,18.64964886]
[1747744465953,12.82457067,165.55,165.49,26.0]
[1747744466154,12.82457067,165.55,165.5,18.1]
[1747744466356,12.82457067,165.55,165.49,26.0]
[1747744466357,1.5356,165.55,165.42,8.54015989]
[1747744466555,0.14216157,165.5,165.42,8.54015989]
[1747744466756,12.82457067,165.49,165.41,10.974509]
[1747744466949,12.82457067,165.49,165.43,26.0]
[1747744467257,12.82457067,165.49,165.42,18.64964886]
[1747744467830,21.1467585,165.51,165.43,26.0]
[1747744468132,33.97132917,165.51,165.43,26.0]
[1747744469535,12.82457067,165.5,165.43,26.0]
[1747744470042,15.1048275,165.51,165.37,19.6899]
[1747744470043,1.6257,165.48,165.37,19.6899]
[1747744470248,0.14216157,165.47,165.37,19.6899]
[1747744470427,0.14216157,165.47,165.38,18.64964886]
[1747744470634,12.82457067,165.43,165.38,18.64964886]
[1747744470834,12.82457067,165.43,165.38,36.76964886]
[1747744471038,12.82457067,165.41,165.36,18.64964886]
[1747744471244,0.14216157,165.43,165.36,18.64964886]
[1747744471444,0.14216157,165.43,165.35,18.64964886]
[1747744471445,21.16082224,165.4,165.35,18.64964886]
[1747744472837,6.04594921,165.4,165.35,18.64964886]
[1747744473248,21.16082224,165.4,165.35,18.64964886]
[1747744473450,15.11487303,165.4,165.35,18.64964886]
[1747744473755,15.11487303,165.4,165.3,18.12]
[1747744473928,15.11487303,165.4,165.31,18.12]
[1747744474334,12.82457067,165.39,165.32,18.64964886]
[1747744475369,15.2570346,165.4,165.32,18.64964886]
[1747744475538,34.12755448,165.4,165.32,18.64964886]
[1747744476146,21.30298381,165.4,165.32,18.64964886]
[1747744476441,6.04594921,165.4,165.32,18.64964886]
[1747744477046,21.16082224,165.4,165.32,18.64964886]
[1747744478275,6.04594921,165.4,165.34,18.64964886]
[1747744478441,6.04521823,165.42,165.34,18.64964886]
[1747744479263,21.15826381,165.42,165.34,18.64964886]
[1747744479560,21.15826381,165.42,165.36,18.64964886]
[1747744481276,15.11304558,165.42,165.36,18.64964886]
[1747744483567,21.15826381,165.42,165.36,18.64964886]
[1747744483982,6.04521823,165.42,165.36,26.28116706]
[1747744484268,15.11103045,165.45,165.38,44.64964886]
[1747744485151,15.11103045,165.45,165.38,26.0]
[1747744485362,21.15515254,165.45,165.39,18.64964886]
[1747744488783,21.15515254,165.45,165.38,26.0]
[1747744488998,12.82457067,165.43,165.37,18.64964886]
[1747744489664,21.15826381,165.42,165.37,18.64964886]
[1747744490504,6.04521823,165.42,165.37,44.64964886]
[1747744491886,15.11048594,165.45,165.37,44.64964886]
[1747744496994,21.15460803,165.45,165.37,44.64964886]
[1747744498492,51.37521848,165.45,165.37,44.64964886]
[1747744498700,134.9,165.44,165.38,18.12]
[1747744499083,147.72457067,165.44,165.37,18.64964886]
[1747744500495,21.15698481,165.43,165.37,18.64964886]
[1747744500881,147.72457067,165.42,165.35,26.0]
[1747744501089,12.82457067,165.41,165.35,18.12]
[1747744501307,12.82457067,165.41,165.34,18.64964886]
[1747744501591,12.82457067,165.41,165.34,36.76964886]
[1747744501976,21.16082224,165.4,165.34,36.76964886]
[1747744503777,135.04216157,165.39,165.32,1.5474]
[1747744503977,21.1633813,165.38,165.32,19.6674]
[1747744504617,21.1633813,165.38,165.31,36.76964886]
[1747744504907,134.9,165.37,165.31,36.76964886]
[1747744506079,21.16594096,165.36,165.31,18.64964886]
[1747744506288,21.16594096,165.36,165.31,18.12]
[1747744506476,21.16594096,165.36,165.27,30.74581886]
[1747744506700,6.5989,165.35,165.28,18.12]
[1747744506881,6.5989,165.35,165.29,18.12]
[1747744507477,6.5989,165.35,165.3,18.64964886]
[1747744507681,6.04814322,165.34,165.3,18.64964886]
[1747744507877,6.04814322,165.34,165.3,20.22654886]
[1747744510499,15.11852926,165.36,165.3,20.22654886]
[1747744510500,21.16594096,165.36,165.3,20.22654886]
[1747744510704,12.82457067,165.34,165.25,1.5824]
[1747744510996,21.16594096,165.36,165.26,36.76964886]
[1747744510997,12.82457067,165.35,165.26,36.76964886]
[1747744511196,21.16594096,165.36,165.26,36.76964886]
[1747744511404,12.96673224,165.35,165.26,36.76964886]
[1747744511702,12.91010627,165.35,165.26,36.76964886]
[1747744511912,21.16850127,165.34,165.26,36.76964886]
[1747744514176,21.16850127,165.34,165.26,18.64964886]
[1747744514382,21.16850127,165.34,165.26,36.78964886]
[1747744517186,21.16850127,165.34,165.26,18.64964886]
[1747744517391,21.16850127,165.34,165.27,18.14]
[1747744518196,134.9,165.33,165.26,18.64964886]
[1747744518393,134.9,165.33,165.25,27.5824]
[1747744518394,0.14216157,165.32,165.25,27.5824]
[1747744518611,134.9,165.31,165.25,27.5824]
[1747744518784,134.9,165.31,165.26,18.64964886]
[1747744519696,134.9,165.31,165.26,36.78964886]
[1747744520081,6.04960677,165.3,165.26,36.78964886]
[1747744523083,21.1736237,165.3,165.26,36.78964886]
[1747744523502,21.1736237,165.3,165.25,27.5824]
[1747744523814,21.1736237,165.3,165.25,45.7224]
[1747744524008,21.1736237,165.3,165.25,27.5824]
[1747744524225,21.1736237,165.3,165.26,18.14]
[1747744524393,15.12401693,165.3,165.26,18.14]
[1747744524711,15.12401693,165.3,165.25,1.5824]
[1747744524913,15.12401693,165.3,165.26,18.14]
[1747744525113,15.12401693,165.3,165.24,44.64964886]
[1747744525422,15.12401693,165.3,165.25,18.14]
[1747744525801,0.14216157,165.29,165.23,18.14]
[1747744526500,21.17618585,165.28,165.21,44.64964886]
[1747744526705,21.17618585,165.28,165.22,18.14]
[1747744527594,21.17618585,165.28,165.23,18.64964886]
[1747744528013,6.05033881,165.28,165.23,18.64964886]
[1747744528603,21.17286449,165.31,165.23,18.64964886]
[1747744529003,21.17286449,165.31,165.23,24.70178608]
[1747744529924,6.04924082,165.31,165.23,24.70178608]
[1747744530722,15.12257146,165.32,165.23,24.70178608]
[1747744530896,150.02257146,165.32,165.23,24.70178608]
[1747744531800,156.07144636,165.32,165.23,24.70178608]
[1747744533701,140.9488749,165.32,165.27,18.64964886]
[1747744534023,6.0488749,165.32,165.29,18.64964886]
[1747744534636,6.0488749,165.32,165.28,18.14]
[1747744535718,15.12218727,165.32,165.28,18.14]
[1747744537626,21.17106217,165.32,165.28,18.14]
[1747744538725,21.17106217,165.32,165.25,18.64964886]
[1747744539110,51.41543671,165.32,165.25,18.64964886]
[1747744539312,64.24000738,165.32,165.25,18.64964886]
[1747744539914,135.04216157,165.31,165.24,45.7102]
[1747744540327,135.04216157,165.31,165.24,44.14]
[1747744540522,12.82457067,165.26,165.16,1.506]
[1747744540716,0.14216157,165.26,165.17,18.14]
[1747744541422,0.14216157,165.26,165.18,18.64964886]
[1747744541932,21.18003025,165.25,165.18,18.64964886]
[1747744542446,6.05143721,165.25,165.18,18.64964886]
[1747744544438,21.1749047,165.29,165.18,18.64964886]
[1747744544735,51.42476857,165.29,165.18,18.64964886]
[1747744544931,12.96673224,165.28,165.18,18.64964886]
[1747744545244,12.96673224,165.28,165.2,18.64964886]
[1747744545410,0.14216157,165.28,165.2,18.64964886]
[1747744545834,12.96673224,165.28,165.2,18.64964886]
[1747744546622,21.17746716,165.27,165.2,18.64964886]
[1747744547233,51.43099169,165.27,165.16,1.506]
[1747744547432,51.43099169,165.27,165.17,36.78964886]
[1747744547634,51.43099169,165.27,165.17,62.78964886]
[1747744549344,0.14216157,165.26,165.17,62.78964886]
[1747744550345,0.14216157,165.26,165.18,18.14]
[1747744551140,21.18003025,165.25,165.18,18.14]
[1747744553139,21.18003025,165.25,165.17,44.64964886]
[1747744553343,21.18003025,165.25,165.18,18.14]
[1747744558439,21.18259395,165.23,165.1,6.80679949]
[1747744558631,21.18259395,165.23,165.11,36.78964886]
[1747744558834,21.18259395,165.23,165.15,18.64964886]
[1747744559043,21.18259395,165.23,165.16,18.14]
[1747744559227,21.18259395,165.23,165.17,18.64964886]
[1747744559432,6.0521697,165.23,165.17,18.64964886]
[1747744560151,6.0521697,165.23,165.17,44.64964886]
[1747744560747,15.12850199,165.26,165.17,50.70397524]
[1747744561119,15.12850199,165.26,165.17,44.64964886]
[1747744562445,21.17957302,165.26,165.17,44.64964886]
[1747744563159,0.14216157,165.25,165.17,44.64964886]
[1747744563355,0.14216157,165.25,165.17,36.78964886]
[1747744563660,134.9,165.24,165.17,36.78964886]
[1747744563861,134.9,165.24,165.17,18.64964886]
[1747744564648,21.18259395,165.23,165.17,18.64964886]
[1747744572356,26.0,165.2,165.17,18.64964886]
[1747744573765,6.0536352,165.19,165.17,18.64964886]
[1747744575170,6.05290236,165.21,165.17,18.64964886]